Cogmind - Beta 14 @@@ ROGUE MODE // 2024.09.07 @ 12:34:34 Player: rice Result: Destroyed by G-47 Trooper with Particle Gun Performance ------------- Evolutions (0) 0 Regions Visited (2) 400 Robots Destroyed (20) 100 Value Destroyed (654) 654 Prototype IDs (0) 0 Alien Tech Used (0) 0 Bonus (0) 0 TOTAL SCORE: 1154 Bonus ------- None Cogmind --------- Core Integrity 0/250 Matter 300/300 Energy 250/250 System Corruption 0% Temperature Cool (18) Movement Treading (160) Location -10/Mines Parts ------- > --- POWER (1) -------- Ion Engine > --- PROPULSION (2) --- Light Treads Light Treads > --- UTILITY (2) ------ Medium Storage Unit ECM Suite > --- WEAPON (2) ------- Assault Rifle Light Assault Rifle > --- INVENTORY (10) --- Aluminum Leg Aluminum Leg Aluminum Leg Aluminum Leg Improved Heat Sink Small Matter Pod (50) Sensor Array ECM Suite Light Armor Plating Particle Gun Peak State ------------ > --- POWER ------------ Ion Engine > --- PROPULSION ------- Aluminum Leg Aluminum Leg > --- UTILITY ---------- Medium Storage Unit ECM Suite > --- WEAPON ----------- Particle Gun Light Assault Rifle > --- INVENTORY -------- Light Treads Light Treads Aluminum Leg Improved Heat Sink Small Matter Pod ECM Suite Light Armor Plating Small Laser Grenade Launcher Datajack [Rating: 9] Favorites ----------- Power Ion Engine Engine Ion Engine Propulsion Aluminum Leg Treads Light Treads Leg Aluminum Leg Utility ECM Suite Device ECM Suite Storage Medium Storage Unit Weapon Light Assault Rifle Energy Gun Particle Gun Ballistic Gun Light Assault Rifle Build | -11 -10 -10 ------- Run | Yrd Mat Min Slots Evolved . | . . . Power . | . . . Propulsion . | . . . Utility . | . . . Weapon . | . . . Parts Attached 25 | 6 17 2 Power 2 | 1 1 . Engine 2 | 1 1 . Core . | . . . Reactor . | . . . Propulsion 11 | 2 9 . Treads 2 | . 2 . Leg 9 | 2 7 . Wheel . | . . . Hover . | . . . Flight . | . . . Utility 4 | 1 3 . Device 2 | . 2 . Storage 2 | 1 1 . Processor . | . . . Hackware . | . . . Protection . | . . . Artifact . | . . . Weapon 8 | 2 4 2 Energy Gun 4 | 2 2 . Energy Cannon . | . . . Ballistic Gun 4 | . 2 2 Ballistic Cannon . | . . . Launcher . | . . . Special Weapon . | . . . Impact Weapon . | . . . Slashing Weapon . | . . . Piercing Weapon . | . . . Special Melee Weapon . | . . . Unidentified Prototypes . | . . . Parts Lost 2 | . 2 . Power 1 | . 1 . Propulsion . | . . . Utility . | . . . Weapon 1 | . 1 . Highest Loss Streak 1 | . 1 . To Critical Strikes . | . . . Average Slot Usage (%) 99 | . 98 100 Engine 13 | . 13 14 Treads 12 | . . 28 Leg 15 | . 27 . Device 13 | . 13 14 Storage 14 | . 14 14 Energy Gun 15 | . 21 9 Ballistic Gun 11 | . 5 18 Peak Build Rating 9 | 6 9 9 Average Rating 7 | 3 7 8 On Entrance 4 | . 6 8 Naked Turns . | . . . Heaviest Build 22 | 13 21 22 Greatest Support 40 | 20 40 40 Greatest Overweight (x) 4 | . 4 . Average Overweight (x) . | . . . Largest Inventory Capacity 10 | 8 10 10 Average Capacity 9 | 7 9 10 Most Carried 10 | 3 10 10 Average Carried 8 | 1 7 9 Final Capacity 10 | 8 10 10 Final Carried 10 | 3 7 10 Class Distribution -------------------- 100% | Mutant Dominant Class ---------------- Mutant | -10/Materials Mutant | -10/Mines Resources | -11 -10 -10 ----------- Run | Yrd Mat Min Matter Collected 586 | 260 203 123 Remotely . | . . . Salvage Created 833 | . 555 278 Parts 42 | . 30 12 Haulers Intercepted 1 | . 1 . Recyclers Shooed . | . . . Parts Field Recycled . | . . . Retrieved Matter . | . . . Parts Self-Destructed . | . . . Prevented . | . . . Kills | -11 -10 -10 ------- Run | Yrd Mat Min Combat Hostiles Destroyed 17 | . 10 7 Guns 17 | . 10 7 Classes Destroyed 4 | . 4 . Hauler 1 | . 1 . Recycler 1 | . 1 . Operator 1 | . 1 . Grunt 17 | . 10 7 Best Kill Streak 3 | . 3 2 Combat Bots Only 2 | . 2 2 Max Kills in Single Turn 1 | . 1 1 Gunslinging . | . . . Exploded . | . . . Melee . | . . . Uniques/NPCs Destroyed . | . . . Combat | -11 -10 -10 -------- Run | Yrd Mat Min Hostile Shots Fired 119 | . 84 35 Missed 29 | . 22 7 Damage Taken 1192 | . 832 360 Core 262 | . 210 52 Absorbed by Shields . | . . . Regen/Repaired (Parts) 63 | . 63 . Core Remaining (%) 100 | 100 . . Volleys Fired 97 | . 69 28 Largest 2 | . 2 2 Hottest 90 | . 90 85 Shots Fired 174 | . 125 49 Gun 174 | . 125 49 Cannon . | . . . Launcher . | . . . Special . | . . . Kinetic 71 | . 28 43 Thermal 103 | . 97 6 Explosive . | . . . Electromagnetic . | . . . Robot Hit Streak 14 | . 14 13 Robot Miss Streak 4 | . 4 2 Penetration Max . | . . . Secondary Targets 1 | . . 1 Max Gunslinging Chain 1 | . . 1 Shots Hit Robots 117 | . 85 32 Core Hits 45 | . 30 15 Critical Kills . | . . . Critical Parts Destroyed . | . . . Critical Strikes 4 | . 4 . Burn 4 | . 4 . Melee Attacks . | . . . Impact . | . . . Slashing . | . . . Piercing . | . . . Sneak Attacks . | . . . Combat Hostiles . | . . . Follow-up Attacks . | . . . Damage Inflicted 1304 | . 949 355 Guns 1299 | . 944 355 Cannons . | . . . Explosions . | . . . Melee . | . . . Ramming 5 | . 5 . Kinetic 451 | . 176 275 Thermal 848 | . 768 80 Explosive . | . . . Electromagnetic . | . . . Impact . | . . . Slashing . | . . . Piercing . | . . . Highest Corruption . | . . . Average Corruption . | . . . Corruption Purged . | . . . Corruption Blocked . | . . . Overload Shots . | . . . Overflow Damage . | . . . Projectiles . | . . . Explosions . | . . . Melee . | . . . Knockbacks . | . . . Impact . | . . . Kinetic . | . . . Secondary . | . . . Self-Inflicted Damage . | . . . Shots . | . . . Rammed . | . . . Targets Rammed 2 | . 2 . Kicked 2 | . 2 . Crushed . | . . . Highest Temperature 303 | . 303 238 Average Temperature 75 | . 71 98 Received Heat Transfer 651 | . 450 201 Siege Activations . | . . . Robots Corrupted . | . . . Combat Hostiles . | . . . Parts Fried . | . . . Impact Corruptions . | . . . Robots Melted . | . . . Combat Hostiles . | . . . Parts Melted 6 | . 6 . Heat Transferred 2404 | . 2219 185 Parts Sabotaged . | . . . Parts Stolen . | . . . Parts Stripped . | . . . Power Chain Reactions . | . . . Alert | -11 -10 -10 ------- Run | Yrd Mat Min Peak Influence 117 | . 117 100 Initial 28 | . . 28 Average 31 | . 41 21 Maximum Alert Level . | . . . Low Security (%) 100 | 100 100 100 Level 1 . | . . . Level 2 . | . . . Level 3 . | . . . Level 4 . | . . . Level 5 . | . . . High Security . | . . . Max Security . | . . . Squads Dispatched 3 | . 3 . Investigation 1 | . 1 . Extermination . | . . . Reinforcement 2 | . 2 . Assault . | . . . Garrison . | . . . Intercept . | . . . Searches Triggered . | . . . Construction Impeded . | . . . Haulers Reinforced . | . . . Active Scanning Responses . | . . . Cargo Convoy Interrupts . | . . . Stealth | -11 -10 -10 --------- Run | Yrd Mat Min Distress Signals 4 | . 3 1 Communications Jammed . | . . . Distress Signals . | . . . Times Spotted 45 | . 34 11 Peak Tracking Total 6 | . 4 6 Tactical Retreats 13 | . 11 2 Traps | -11 -10 -10 ------- Run | Yrd Mat Min Traps Triggered 2 | . 2 . Indirectly . | . . . Trap Hack Attempts . | . . . Triggered . | . . . Disarmed . | . . . Reprogrammed . | . . . Reused . | . . . Traps Extracted . | . . . Installed . | . . . Triggered . | . . . Machines | -11 -10 -10 ---------- Run | Yrd Mat Min Machines Disabled . | . . . Max in Single Turn . | . . . Machines Repaired . | . . . Machines Dismantled . | . . . Machines Sabotaged . | . . . Overloaded Fab Kills . | . . . Hacking | -11 -10 -10 --------- Run | Yrd Mat Min Machines Accessed 4 | . 4 . Terminals 1 | . 1 . Fabricators . | . . . Repair Stations 1 | . 1 . Recycling Units 2 | . 2 . Scanalyzers . | . . . Garrison Access . | . . . Total Hacks 6 | . 6 . Successful 6 | . 6 . Failed . | . . . Catastrophic . | . . . Database Lockouts . | . . . Manual . | . . . Terminals 2 | . 2 . Fabricators . | . . . Repair Stations 2 | . 2 . Recycling Units 2 | . 2 . Scanalyzers . | . . . Garrison Access . | . . . Terminal Hacks 2 | . 2 . Alert Level 1 | . 1 . Unreport Threat 1 | . 1 . Fabricator Hacks . | . . . Repair Station Hacks 2 | . 2 . Scan Component 1 | . 1 . Repair 1 | . 1 . Recycling Unit Hacks 2 | . 2 . Report Inventory 2 | . 2 . Scanalyzer . | . . . Garrison Access Hacks . | . . . Unauthorized Hacks . | . . . Terminals . | . . . Fabricators . | . . . Repair Stations . | . . . Recycling Units . | . . . Scanalyzers . | . . . Garrison Access . | . . . Data Cores Recovered . | . . . Used . | . . . Hacking Detections 1 | . 1 . Full Trace Events . | . . . Feedback Events . | . . . Feedback Blocked . | . . . Robot Schematics Acquired . | . . . Robots Built . | . . . Authchips . | . . . Time . | . . . Total Robot Build Rating . | . . . Part Schematics Acquired . | . . . Parts Built . | . . . Authchips . | . . . Time . | . . . Total Part Build Rating . | . . . Parts Repaired 1 | . 1 . Time 26 | . 26 . Parts Recycled . | . . . Recycled Matter . | . . . Retrieved Matter . | . . . Retrieved Components . | . . . Parts Scanalyzed . | . . . Part Schematics Acquired . | . . . Parts Damaged . | . . . Bothacking | -11 -10 -10 ------------ Run | Yrd Mat Min Used RIF Installer . | . . . Robots Hacked . | . . . Non-combat . | . . . Combat . | . . . Robot Hacks Applied . | . . . Relay Couplers Released . | . . . Fabnet Peak Effective % . | . . . Robots Rewired . | . . . Allies Hacked . | . . . Hacks Repelled . | . . . Allies | -11 -10 -10 -------- Run | Yrd Mat Min Total Allies . | . . . Largest Group . | . . . Highest-Rated Group . | . . . Highest-Rated Ally . | . . . Total Orders . | . . . Ally Attacks . | . . . Total Damage . | . . . Kills . | . . . Allies Corrupted . | . . . Allies Melted . | . . . Intel | -11 -10 -10 ------- Run | Yrd Mat Min Robot Analysis Total . | . . . Derelict Logs Recovered 1 | . . 1 Drone Launches . | . . . Drone Recoveries . | . . . Exploration | -11 -10 -10 ------------- Run | Yrd Mat Min Turns Passed 2991 | 93 1591 1307 Spaces Moved 1371 | 77 707 587 Core 20 | 17 3 . Treads 589 | . 2 587 Legs 762 | 60 702 . Wheels . | . . . Hover . | . . . Flight . | . . . Fastest Speed 50 | 50 120 160 Average Speed 146 | 104 139 160 Slowest Speed 250 | 120 250 160 Overloaded Moves . | . . . Propulsion Burnouts . | . . . Robots Hopped . | . . . Cave-ins Triggered . | . . . Exploration Rate (%) 62 | 5 94 89 Regions Visited 2 Branch Regions 1 Pre-discovered Areas . | . . . Known Exits Taken . | . . . Unknown Exits Taken 2 | 1 1 . Scrap Searched 1 | . . 1 Spaces Dug . | . . . Terrain Destroyed . | . . . Melee . | . . . Projectile . | . . . AOE . | . . . Terrain Rammed . | . . . Walls Destroyed . | . . . Machines Disabled . | . . . Actions | -11 -10 -10 --------- Run | Yrd Mat Min Total 2189 | 86 1192 911 Wait 667 | 1 374 292 Move 1369 | 76 706 587 Hop . | . . . Pick Up 16 | 3 11 2 Fast Attach 7 | 6 1 . Attach 3 | . 3 . Detach . | . . . Swap 15 | . 13 2 Drop 13 | . 13 . Fire 97 | . 69 28 Melee . | . . . Ram . | . . . Kick 2 | . 2 . Crush . | . . . Escape Stasis . | . . . Rewire . | . . . Trap . | . . . Miscellaneous . | . . . Route ------- -11/Scrapyard -10/Materials (discovered 4 exits: [*Mat x3] / [*Min]) -10/Mines (discovered 1 exit: [*Mat]) History --------- Turn | Location | Event 7 | -11/Scrapyard | Discovered new exit (range 15) 94 | -11/Scrapyard | Entered Materials 309 | -10/Materials | Build established: Mutant 795 | -10/Materials | Core integrity fell below 50% 883 | -10/Materials | Discovered new exit (range 9) 1168 | -10/Materials | Discovered new exit (range 10) 1264 | -10/Materials | Discovered new exit (range 6) 1374 | -10/Materials | Discovered new exit (range 15) 1430 | -10/Materials | Core integrity fell below 20% 1648 | -10/Materials | Repaired Lgt. Assault Rifle 1685 | -10/Materials | Entered Mines 1713 | -10/Mines | Met a Derelict bent on vengeance 1731 | -10/Mines | Discovered new exit (range 4) 1757 | -10/Mines | Learned Materials stockpile data 2543 | -10/Mines | Excavation squad dispatched 2543 | -10/Mines | A large section of the Mines collapsed 2793 | -10/Mines | Excavation squad dispatched 2992 | -10/Mines | Destroyed by G-47 Trooper with Particle Gun Last Messages --------------- 02902_ G-34 Mercenary destroyed. 02903_ Acquired 4 matter. 02903_ U-05 Engineer lays Concrete. 02916_ G-34 Mercenary destroyed. 02921_ Acquired 12 matter. 02926_ K-01 Serf collects debris. 02929_ U-05 Engineer lays Concrete. 02930_ K-01 Serf collects debris. 02931_ U-05 Engineer lays Concrete. 02942_ K-01 Serf collects debris. 02949_ G-34 Mercenary destroyed. 02950_ K-01 Serf collects debris. 02951_ Acquired 8 matter. 02953_ K-01 Serf collects debris. 02985_ G-34 Mercenary destroyed. 02985_ Switching to secondary target: G-34 Mercenary. 02987_ G-34 Mercenary destroyed. 02988_ Acquired 12 matter. 02991_ Acquired 4 matter. Map ----- +----------------------------------------------------+ | ????## ####????## ##??????????????????? | | ????# ###### ### ##?????????????????? | | ##### """ ## ##?## ##????????????????? | | """ ##??## ##???????????????? | | ## """ ##??## #############???? | | ?# ###?# #???? | | #### ## ### #???? | | ##?## ####### ### ########### #???? | | #??#######?????## #?#######????????## #???? | | ##??????????????### ##????????????#### ##??? | | ##???????????????## #???????????## ##?? | | ##???????????????## #???????????# #?? | | ##??????????????## #???????????# #?? | | ##?????????????# ##???????????## #?? | | ## ##????????????# ##?????????????## ##?? | | ?## ##???????????# ##???????????????### ##??? | | ??# #???????????###??????????????????## #???? | | ??## #?????????????????????????????????# #???? | | ??## #?????????????????????????????????# #???? | | ### #?????????????????????????????????# #???? | | # #?????###?????????????????????????# #???? | | ##???## ##????????????????????????# #???? | | ##????# #????????????????????????# #???? | | # ##????## ##???????????????????????# #???? | | ######????## ################????????# #???? | | #?????????# @%=g |t%!trt %#??? #???? | | ##?####???# ###[#####%s#????????? #???? | | ### ##??# ?????# #???????????????? ???? | | #??## #??????# #???????????????? ???? | | #???# #???##### #???????????????? ???? | | = ##??## " #????# #???????????????? ???? | | #???# " #????# #####???????????????? ???? | | ## #??## ###### #??????????????????????????? | | ?### "#?## [% #??????????????????????????? | | #### ### " #########??????????????????????????? | | % *%! ## #??????????????????????????????????? | | #### ""%[ ##??????????????????????????????????? | | ???###### ##???????????????????????????????????? | | ????????#####????????????????????????????????????? | | ?????????????????????????????????????????????????? | | ?????????????????????????????????????????????????? | | | | | | | | | | | | | | | | | | | +----------------------------------------------------+ Best States ------------- Heat Dissipation 25 Energy Generation 10 Energy Capacity 250 Matter Stores 300 Matter Capacity 300 Sight Range 16 Terrain Scan Density 10 ECM Strength 1 Evasion (%) 55 Recoil Reduction 2 Item Schematics ----------------- None Robot Schematics ------------------ None Fabricated ------------ Nothing Alien Tech Used ----------------- None Achievements -------------- None Challenges ------------ None Game ------ Seed ForceOpticalField Manual? 0 Play Time 00:14:52 Cumulative 15.5 hours Start 2024.09.07 @ 12:17:51 End 2024.09.07 @ 12:34:34 Sessions 1 Manual Loads 0 Difficulty Rogue Special Mode None Game No. 35 Rogue 35 Adventurer 0 Explorer 0 Win Type - Total 0 Types 0/0/0/0/0/0/0/0/0 Lore% 4 Gallery% 20 Achievement% 17 Wizard Run 0 Options --------- Layout 1 ASCII 0 Keyboard 0 Movement Numpad Keybinds 0 Fullscreen 1 Font 24/Smallcaps Map View 50x35 Zoom Use 0% Tactical HUD 1 Map Filters NONE Filters NONE Steam 1 RUN: 55b3cf20-a9bf-4b14-825a-4b0966a25416